[Event "European Women Rapid-ch 2023"]
[Site "Monaco"]
[Date "2024.01.14"]
[Round "11.9"]
[White "Navrotescu, Andreea"]
[Black "Vega Gutierrez, Sabrina"]
[Result "0-1"]
[ECO "D41"]
[WhiteElo "2222"]
[BlackElo "2378"]
[Annotator "RC"]
[PlyCount "96"]
[EventDate "2023.12.19"]
[EventType "swiss"]
[EventCountry "MNC"]
[SourceTitle "playchess.com"]
[Source "ChessBase"]
[SourceQuality "1"]
[TimeControl "900+10"]

1. c4 {[%emt 0:00:02]} e6 {[%emt 0:00:10]} 2. Nc3 {[%emt 0:00:10]} d5 {[%emt 0:00:04]} 3. d4 {[%emt 0:00:04]} Nf6 {[%emt 0:00:04]} 4. cxd5 {[%emt 0:00:07]} Nxd5 {[%emt 0:00:04]} 5. e4 {[%emt 0:00:07]} Nxc3 {[%emt 0:00:03]} 6. bxc3 {[%emt 0:00:02]} c5 {[%emt 0:00:03]} 7. Nf3 {[%emt 0:00:05]} cxd4 {[%emt 0:00:02]} 8. cxd4 {[%emt 0:00:03]} Bb4+ {[%emt 0:00:02]} 9. Bd2 {[%emt 0:00:03]} Bxd2+ {[%emt 0:00:03]} 10. Qxd2 {[%emt 0:00:03]} O-O {[%emt 0:00:02]} 11. Bc4 {[%emt 0:00:08]} Nd7 {[%emt 0:00:06]} 12. O-O {[%emt 0:00:06]} b6 {[%emt 0:00:02]} 13. Rad1 {[%emt 0:00:33]} Bb7 {[%emt 0:00:03]} 14. Rfe1 {[%emt 0:00:10]} Rc8 {[%emt 0:00:28]} 15. Bb3 {[%emt 0:01:15]} h6 {[%emt 0:01:05]} 16. Qf4 {[%emt 0:01:00]} Qf6 {[%emt 0:01:43]} 17. Qg4 {[%emt 0:00:02]} Rfd8 {[%emt 0:01:39]} 18. e5 {[%emt 0:07:14]} Qe7 {[%emt 0:02:31]} 19. d5 {[%emt 0:00:02]} exd5 {[%emt 0:00:41]} 20. Nd4 {[%emt 0:00:02]} Qg5 {[%emt 0:04:20]} 21. Qxg5 {[%emt 0:01:15]} hxg5 {[%emt 0:00:02]} 22. e6 {[%emt 0:00:07]} fxe6 {[%emt 0:00:21]} 23. Nxe6 {[%emt 0:00:03]} Re8 {[%emt 0:00:02]} 24. Nxg5 {[%emt 0:01:10]} Rxe1+ {[%emt 0:00:03]} 25. Rxe1 {[%emt 0:00:02]} Nc5 {[%emt 0:00:05]} 26. h4 {[%emt 0:01:46]} Nxb3 {[%emt 0:00:46]} 27. axb3 {[%emt 0:00:02]} d4 {[%emt 0:01:01]} 28. Rd1 {[%emt 0:01:38]} Bd5 {[%emt 0:00:04]} 29. b4 {[%emt 0:01:03]} Rc4 {[%emt 0:00:04]} 30. Ra1 {[%emt 0:00:45]} d3 {[%emt 0:00:42]} 31. Rd1 {[%emt 0:00:23]} Rd4 {[%emt 0:00:05]} 32. f3 {[%emt 0:00:05]} d2 {[%emt 0:03:14]} 33. Ne4 {[%emt 0:00:01]} Bxe4 {[%emt 0:00:01]} 34. fxe4 {[%emt 0:00:01]} Rxb4 {[%emt 0:00:17]} 35. Rxd2 {[%emt 0:00:04]} Rxe4 {[%emt 0:00:02]} 36. Rd7 {[%emt 0:00:16]} a5 {[%emt 0:00:03]} 37. Rb7 {[%emt 0:00:23]} Rb4 {[%emt 0:00:09]} 38. Kf2 {[%emt 0:00:24]} a4 {[%emt 0:00:23]} 39. g3 {[%emt 0:00:17]} a3 {[%emt 0:00:06]} 40. Ra7 {[%emt 0:00:03]} Rb3 {[%emt 0:00:01]} 41. g4 {[%emt 0:00:06]} Kh7 {[%emt 0:00:14]} 42. h5 {[%emt 0:00:31]} Kh6 {[%emt 0:00:03]} 43. Ke2 {[%emt 0:00:12]} b5 {[%emt 0:00:29]} 44. Ra6+ {[%emt 0:00:01]} Kh7 {[%emt 0:00:25]} 45. g5 {[%emt 0:00:24]} Rh3 {[%emt 0:00:17]} 46. h6 {[%emt 0:00:12]} gxh6 {[%emt 0:00:12]} 47. gxh6 {[%emt 0:00:02]} a2 {[%emt 0:00:16]} 48. Kd2 {[%emt 0:00:11]} Rh1 {[%emt 0:00:03]} 0-1

[Event "European Women Rapid-ch 2023"]
[Site "Monaco"]
[Date "2024.01.14"]
[Round "11.10"]
[White "Krasteva, Beloslava"]
[Black "Bensdorp-De Labaca, Marlies"]
[Result "1/2-1/2"]
[ECO "A92"]
[WhiteElo "2251"]
[BlackElo "2237"]
[Annotator "ChessBase"]
[PlyCount "89"]
[EventDate "2023.12.19"]
[EventType "swiss"]
[EventCountry "MNC"]
[SourceTitle "playchess.com"]
[Source "ChessBase"]
[SourceQuality "1"]
[TimeControl "900+10"]

1. d4 {[%emt 0:00:02]} e6 {[%emt 0:00:01]} 2. c4 {[%emt 0:00:02]} f5 {[%emt 0:00:01]} 3. Nf3 {[%emt 0:00:13]} Nf6 {[%emt 0:00:02]} 4. g3 {[%emt 0:00:05]} d5 {[%emt 0:00:15]} 5. Bg2 {[%emt 0:00:07]} Be7 {[%emt 0:00:03]} 6. O-O {[%emt 0:00:14]} Ne4 {[%emt 0:01:46]} 7. b3 {[%emt 0:01:23]} Nc6 {[%emt 0:00:20]} 8. Bb2 {[%emt 0:02:16]} h5 {[%emt 0:00:02]} 9. Nc3 {[%emt 0:01:43]} Bf6 {[%emt 0:00:19]} 10. Nxe4 {[%emt 0:01:46]} dxe4 {[%emt 0:01:37]} 11. Ne5 {[%emt 0:00:06]} Nxe5 {[%emt 0:00:45]} 12. dxe5 {[%emt 0:00:02]} Qxd1 {[%emt 0:00:08]} 13. Raxd1 {[%emt 0:00:05]} Be7 {[%emt 0:00:01]} 14. f3 {[%emt 0:00:32]} exf3 {[%emt 0:00:15]} 15. exf3 {[%emt 0:00:04]} Bd7 {[%emt 0:00:25]} 16. f4 {[%emt 0:00:29]} O-O-O {[%emt 0:00:18]} 17. Bd4 {[%emt 0:00:56]} a6 {[%emt 0:01:24]} 18. h4 {[%emt 0:01:10]} Bc6 {[%emt 0:00:07]} 19. Bxc6 {[%emt 0:00:13]} bxc6 {[%emt 0:00:02]} 20. Be3 {[%emt 0:01:25]} Kb7 {[%emt 0:00:43]} 21. Kf2 {[%emt 0:00:08]} Bb4 {[%emt 0:00:59]} 22. Ke2 {[%emt 0:00:11]} c5 {[%emt 0:01:11]} 23. Rd3 {[%emt 0:02:49]} Rxd3 {[%emt 0:00:04]} 24. Kxd3 {[%emt 0:00:02]} Kc6 {[%emt 0:00:48]} 25. Kc2 {[%emt 0:00:04]} Rd8 {[%emt 0:00:11]} 26. Bc1 {[%emt 0:00:21]} Rd4 {[%emt 0:00:34]} 27. a3 {[%emt 0:00:03]} Ba5 {[%emt 0:00:04]} 28. Be3 {[%emt 0:00:28]} Rd8 {[%emt 0:00:27]} 29. Rb1 {[%emt 0:00:06]} Bb6 {[%emt 0:00:24]} 30. Bd2 {[%emt 0:00:24]} a5 {[%emt 0:00:14]} 31. Be3 {[%emt 0:00:18]} Rd7 {[%emt 0:00:02]} 32. Kc3 {[%emt 0:00:32]} Rd8 {[%emt 0:00:07]} 33. Kc2 {[%emt 0:00:44]} Rd7 {[%emt 0:00:01]} 34. Rd1 {[%emt 0:00:30]} Rxd1 {[%emt 0:00:04]} 35. Kxd1 {[%emt 0:00:02]} Kb7 {[%emt 0:00:14]} 36. Kc2 {[%emt 0:00:03]} Ka6 {[%emt 0:00:02]} 37. Kc3 {[%emt 0:00:15]} c6 {[%emt 0:00:10]} 38. Bd2 {[%emt 0:00:16]} Kb7 {[%emt 0:00:01]} 39. Be1 {[%emt 0:00:11]} Kc7 {[%emt 0:00:11]} 40. Kd3 {[%emt 0:00:49]} Kb7 {[%emt 0:00:01]} 41. Ke2 {[%emt 0:00:09]} Ka6 {[%emt 0:00:01]} 42. Kd3 {[%emt 0:00:21]} Kb7 {[%emt 0:00:01]} 43. Bf2 {[%emt 0:00:16]} Ka6 {[%emt 0:00:01]} 44. Kc3 {[%emt 0:00:08]} Kb7 {[%emt 0:00:01]} 45. Kd3 {[%emt 0:00:12]} 1/2-1/2

[Event "European Women Rapid-ch 2023"]
[Site "Monaco"]
[Date "2024.01.14"]
[Round "11.11"]
[White "Hejazipour, Mitra"]
[Black "Sliwicka, Alicja"]
[Result "0-1"]
[ECO "A34"]
[WhiteElo "2356"]
[BlackElo "2311"]
[Annotator "ChessBase"]
[PlyCount "134"]
[EventDate "2023.12.19"]
[EventType "swiss"]
[EventCountry "MNC"]
[SourceTitle "playchess.com"]
[Source "ChessBase"]
[SourceQuality "1"]
[TimeControl "900+10"]

1. Nf3 {[%emt 0:00:02]} c5 {[%emt 0:00:01]} 2. c4 {[%emt 0:00:05]} Nc6 {[%emt 0:00:02]} 3. e3 {[%emt 0:00:03]} e5 {[%emt 0:00:20]} 4. Nc3 {[%emt 0:00:30]} Nf6 {[%emt 0:00:08]} 5. Be2 {[%emt 0:00:23]} d5 {[%emt 0:00:30]} 6. cxd5 {[%emt 0:00:05]} Nxd5 {[%emt 0:00:03]} 7. Qc2 {[%emt 0:00:12]} Be6 {[%emt 0:00:26]} 8. a3 {[%emt 0:00:13]} Be7 {[%emt 0:00:13]} 9. O-O {[%emt 0:00:08]} O-O {[%emt 0:00:04]} 10. b3 {[%emt 0:00:32]} Rc8 {[%emt 0:00:02]} 11. Bb2 {[%emt 0:00:25]} f6 {[%emt 0:00:12]} 12. Nxd5 {[%emt 0:01:13]} Bxd5 {[%emt 0:00:12]} 13. Bd3 {[%emt 0:00:21]} g6 {[%emt 0:01:01]} 14. Bc4 {[%emt 0:01:30]} Kg7 {[%emt 0:00:13]} 15. Rfd1 {[%emt 0:00:58]} Na5 {[%emt 0:01:08]} 16. e4 {[%emt 0:01:01]} Bxc4 {[%emt 0:00:33]} 17. bxc4 {[%emt 0:00:02]} Nc6 {[%emt 0:00:16]} 18. d3 {[%emt 0:00:08]} Qc7 {[%emt 0:00:20]} 19. Rab1 {[%emt 0:00:21]} Rcd8 {[%emt 0:00:04]} 20. Nd2 {[%emt 0:00:10]} Nd4 {[%emt 0:01:13]} 21. Bxd4 {[%emt 0:00:06]} exd4 {[%emt 0:00:19]} 22. Qb3 {[%emt 0:00:24]} b6 {[%emt 0:00:12]} 23. a4 {[%emt 0:00:12]} Bd6 {[%emt 0:00:14]} 24. h3 {[%emt 0:01:08]} Rb8 {[%emt 0:00:35]} 25. Rb2 {[%emt 0:00:22]} Qe7 {[%emt 0:00:07]} 26. Nf3 {[%emt 0:00:27]} Bc7 {[%emt 0:00:12]} 27. Qb5 {[%emt 0:00:17]} h5 {[%emt 0:00:25]} 28. Re1 {[%emt 0:00:45]} Rbe8 {[%emt 0:01:33]} 29. Rbe2 {[%emt 0:00:42]} Qf7 {[%emt 0:00:48]} 30. a5 {[%emt 0:00:16]} a6 {[%emt 0:00:52]} 31. Qc6 {[%emt 0:00:32]} Re6 {[%emt 0:00:08]} 32. Qa4 {[%emt 0:00:19]} bxa5 {[%emt 0:00:12]} 33. Rb2 {[%emt 0:00:30]} Qe8 {[%emt 0:00:53]} 34. Qa3 {[%emt 0:00:16]} Qc6 {[%emt 0:00:19]} 35. Reb1 {[%emt 0:00:09]} Ree8 {[%emt 0:00:13]} 36. h4 {[%emt 0:02:01]} Kf7 {[%emt 0:02:33]} 37. Kf1 {[%emt 0:00:11]} Rb8 {[%emt 0:00:11]} 38. Rxb8 {[%emt 0:00:19]} Rxb8 {[%emt 0:00:04]} 39. Rxb8 {[%emt 0:00:04]} Bxb8 {[%emt 0:00:05]} 40. Qxa5 {[%emt 0:00:04]} Bc7 {[%emt 0:00:14]} 41. Qa2 {[%emt 0:00:09]} Ke7 {[%emt 0:01:41]} 42. Nd2 {[%emt 0:00:44]} a5 {[%emt 0:00:15]} 43. Nb1 {[%emt 0:00:19]} Qb6 {[%emt 0:00:30]} 44. Na3 {[%emt 0:00:11]} Qb4 {[%emt 0:00:04]} 45. Nb5 {[%emt 0:00:08]} Bf4 {[%emt 0:01:13]} 46. Na7 {[%emt 0:01:45]} Kd7 {[%emt 0:00:01]} 47. Ke2 {[%emt 0:00:15]} a4 {[%emt 0:00:07]} 48. Nb5 {[%emt 0:00:11]} Bc1 {[%emt 0:00:18]} 49. Kd1 {[%emt 0:00:29]} Bb2 {[%emt 0:00:14]} 50. f4 {[%emt 0:00:45]} a3 {[%emt 0:00:07]} 51. f5 {[%emt 0:00:24]} gxf5 {[%emt 0:00:47]} 52. exf5 {[%emt 0:00:01]} Qa4+ {[%emt 0:00:09]} 53. Kd2 {[%emt 0:00:03]} Qa8 {[%emt 0:00:12]} 54. Kd1 {[%emt 0:00:23]} Qa5 {[%emt 0:00:45]} 55. Ke2 {[%emt 0:00:07]} Kc6 {[%emt 0:00:19]} 56. g4 {[%emt 0:00:17]} hxg4 {[%emt 0:00:06]} 57. h5 {[%emt 0:00:07]} Kd7 {[%emt 0:00:11]} 58. h6 {[%emt 0:00:06]} Qa8 {[%emt 0:00:06]} 59. h7 {[%emt 0:00:13]} Qf3+ {[%emt 0:00:25]} 60. Kd2 {[%emt 0:00:07]} Qg2+ {[%emt 0:00:13]} 61. Kd1 {[%emt 0:00:04]} Qf1+ {[%emt 0:00:13]} 62. Kd2 {[%emt 0:00:06]} Qc1+ {[%emt 0:00:05]} 63. Ke2 {[%emt 0:00:04]} Qe3+ {[%emt 0:00:01]} 64. Kf1 {[%emt 0:00:09]} g3 {[%emt 0:00:09]} 65. Kg2 {[%emt 0:00:08]} Qf2+ {[%emt 0:00:01]} 66. Kh3 {[%emt 0:00:02]} Qh2+ {[%emt 0:00:01]} 67. Kg4 {[%emt 0:00:01]} g2 {[%emt 0:00:02]} 0-1

[Event "European Women Rapid-ch 2023"]
[Site "Monaco"]
[Date "2024.01.14"]
[Round "11.12"]
[White "Zimina, Olga"]
[Black "Dornbusch, Tatiana"]
[Result "1/2-1/2"]
[ECO "A46"]
[WhiteElo "2291"]
[BlackElo "2218"]
[Annotator "ChessBase"]
[PlyCount "136"]
[EventDate "2023.12.19"]
[EventType "swiss"]
[EventCountry "MNC"]
[SourceTitle "playchess.com"]
[Source "ChessBase"]
[SourceQuality "1"]
[TimeControl "900+10"]

1. d4 {[%emt 0:00:02]} Nf6 {[%emt 0:00:01]} 2. Nf3 {[%emt 0:00:02]} c5 {[%emt 0:00:02]} 3. c3 {[%emt 0:00:02]} g6 {[%emt 0:00:04]} 4. Nbd2 {[%emt 0:00:11]} cxd4 {[%emt 0:00:25]} 5. cxd4 {[%emt 0:00:03]} d5 {[%emt 0:00:26]} 6. e3 {[%emt 0:00:17]} Bg7 {[%emt 0:00:17]} 7. Bd3 {[%emt 0:00:26]} O-O {[%emt 0:00:17]} 8. O-O {[%emt 0:00:03]} Nc6 {[%emt 0:00:02]} 9. a3 {[%emt 0:00:21]} Bf5 {[%emt 0:00:46]} 10. Bxf5 {[%emt 0:00:35]} gxf5 {[%emt 0:00:02]} 11. b4 {[%emt 0:00:05]} Rc8 {[%emt 0:01:53]} 12. Bb2 {[%emt 0:00:04]} e6 {[%emt 0:00:26]} 13. Qe2 {[%emt 0:01:08]} Ne4 {[%emt 0:00:20]} 14. Nb3 {[%emt 0:00:53]} Qd6 {[%emt 0:01:06]} 15. Ne1 {[%emt 0:03:03]} Ne7 {[%emt 0:01:34]} 16. Nd3 {[%emt 0:00:05]} Nc3 {[%emt 0:00:50]} 17. Bxc3 {[%emt 0:00:55]} Rxc3 {[%emt 0:00:01]} 18. Nbc5 {[%emt 0:00:36]} b6 {[%emt 0:00:19]} 19. Na4 {[%emt 0:04:09]} Rc7 {[%emt 0:01:21]} 20. Rfc1 {[%emt 0:00:03]} Rfc8 {[%emt 0:00:01]} 21. Qd2 {[%emt 0:00:36]} Qd7 {[%emt 0:00:35]} 22. Nc3 {[%emt 0:00:12]} Rc4 {[%emt 0:01:07]} 23. Nb2 {[%emt 0:00:01]} R4c7 {[%emt 0:00:15]} 24. Ne2 {[%emt 0:00:02]} Rxc1+ {[%emt 0:00:09]} 25. Rxc1 {[%emt 0:00:02]} Rxc1+ {[%emt 0:00:09]} 26. Qxc1 {[%emt 0:00:02]} Qc8 {[%emt 0:00:13]} 27. Kf1 {[%emt 0:00:55]} Qxc1+ {[%emt 0:01:58]} 28. Nxc1 {[%emt 0:00:02]} f4 {[%emt 0:00:10]} 29. Ke2 {[%emt 0:00:52]} Nf5 {[%emt 0:00:16]} 30. Ncd3 {[%emt 0:00:52]} fxe3 {[%emt 0:00:08]} 31. fxe3 {[%emt 0:00:01]} Bh6 {[%emt 0:00:19]} 32. Nd1 {[%emt 0:00:03]} Nd6 {[%emt 0:01:21]} 33. Ne5 {[%emt 0:00:02]} a5 {[%emt 0:00:27]} 34. bxa5 {[%emt 0:00:49]} bxa5 {[%emt 0:00:01]} 35. a4 {[%emt 0:00:07]} f6 {[%emt 0:00:45]} 36. Nc6 {[%emt 0:00:03]} Nc4 {[%emt 0:00:07]} 37. Kd3 {[%emt 0:00:24]} f5 {[%emt 0:00:40]} 38. Nd8 {[%emt 0:00:11]} e5 {[%emt 0:01:00]} 39. dxe5 {[%emt 0:00:02]} Nxe5+ {[%emt 0:00:01]} 40. Kd4 {[%emt 0:00:01]} Nc4 {[%emt 0:00:21]} 41. Kxd5 {[%emt 0:02:01]} Nxe3+ {[%emt 0:01:30]} 42. Nxe3 {[%emt 0:00:01]} Bxe3 {[%emt 0:00:01]} 43. Nc6 {[%emt 0:00:02]} Bd2 {[%emt 0:00:10]} 44. Ne7+ {[%emt 0:00:05]} Kf7 {[%emt 0:00:01]} 45. Nxf5 {[%emt 0:00:02]} Kf6 {[%emt 0:00:20]} 46. Ke4 {[%emt 0:00:10]} Be1 {[%emt 0:00:15]} 47. Nd4 {[%emt 0:00:09]} Bb4 {[%emt 0:00:13]} 48. Nc6 {[%emt 0:00:07]} Be1 {[%emt 0:00:02]} 49. Kd5 {[%emt 0:01:17]} Kf5 {[%emt 0:00:03]} 50. Kc5 {[%emt 0:00:05]} Ke4 {[%emt 0:00:17]} 51. Kb5 {[%emt 0:00:02]} Ke3 {[%emt 0:00:09]} 52. Nxa5 {[%emt 0:00:02]} Kf2 {[%emt 0:00:05]} 53. g4 {[%emt 0:00:40]} Kg2 {[%emt 0:00:06]} 54. Nc6 {[%emt 0:00:02]} Kxh2 {[%emt 0:00:08]} 55. Nb4 {[%emt 0:00:02]} Kh3 {[%emt 0:00:07]} 56. g5 {[%emt 0:00:17]} Kh4 {[%emt 0:00:13]} 57. a5 {[%emt 0:00:02]} Kxg5 {[%emt 0:00:01]} 58. a6 {[%emt 0:00:00]} Bf2 {[%emt 0:00:02]} 59. Nd5 {[%emt 0:00:03]} Ba7 {[%emt 0:00:14]} 60. Kc6 {[%emt 0:00:02]} h5 {[%emt 0:00:01]} 61. Kb7 {[%emt 0:00:01]} h4 {[%emt 0:00:55]} 62. Kxa7 {[%emt 0:00:02]} h3 {[%emt 0:00:01]} 63. Nc3 {[%emt 0:01:02]} h2 {[%emt 0:00:14]} 64. Ne4+ {[%emt 0:00:05]} Kf4 {[%emt 0:00:02]} 65. Nf2 {[%emt 0:00:01]} Kf3 {[%emt 0:00:01]} 66. Nh1 {[%emt 0:00:13]} Kg2 {[%emt 0:00:00]} 67. Kb6 {[%emt 0:00:06]} Kxh1 {[%emt 0:00:04]} 68. a7 {[%emt 0:00:02]} Kg1 {[%emt 0:00:03]} 1/2-1/2

[Event "European Women Rapid-ch 2023"]
[Site "Monaco"]
[Date "2024.01.14"]
[Round "11.13"]
[White "Garcia Martin, Marta"]
[Black "Javakhishvili, Lela"]
[Result "1-0"]
[ECO "B06"]
[WhiteElo "2342"]
[BlackElo "2433"]
[Annotator "RC"]
[PlyCount "119"]
[EventDate "2023.12.19"]
[EventType "swiss"]
[EventCountry "MNC"]
[SourceTitle "playchess.com"]
[Source "ChessBase"]
[SourceQuality "1"]
[TimeControl "900+10"]

1. e4 {[%emt 0:00:02]} c5 {[%emt 0:00:03]} 2. Nc3 {[%emt 0:00:08]} g6 {[%emt 0:00:10]} 3. d4 {[%emt 0:00:07]} Bg7 {[%emt 0:00:28]} 4. dxc5 {[%emt 0:00:15]} Qa5 {[%emt 0:00:06]} 5. Bd2 {[%emt 0:00:21]} Qxc5 {[%emt 0:00:04]} 6. Nd5 {[%emt 0:00:30]} Na6 {[%emt 0:03:28]} 7. Rb1 {[%emt 0:08:03]} e6 {[%emt 0:01:30]} 8. Be3 {[%emt 0:02:00]} Qa5+ {[%emt 0:00:15]} 9. Bd2 {[%emt 0:01:21]} Qd8 {[%emt 0:00:27]} 10. Bc3 {[%emt 0:00:22]} Nf6 {[%emt 0:00:24]} 11. Nxf6+ {[%emt 0:01:05]} Bxf6 {[%emt 0:00:02]} 12. e5 {[%emt 0:00:37]} Bg7 {[%emt 0:00:24]} 13. Nf3 {[%emt 0:00:38]} Nc7 {[%emt 0:00:07]} 14. Bb4 {[%emt 0:00:13]} b6 {[%emt 0:01:17]} 15. Be2 {[%emt 0:00:16]} Bb7 {[%emt 0:00:06]} 16. Bd6 {[%emt 0:00:21]} Nd5 {[%emt 0:00:22]} 17. O-O {[%emt 0:00:44]} Ne7 {[%emt 0:00:37]} 18. Nd4 {[%emt 0:00:13]} Nc8 {[%emt 0:00:14]} 19. Nb5 {[%emt 0:00:03]} f5 {[%emt 0:01:36]} 20. exf6 {[%emt 0:00:35]} Qxf6 {[%emt 0:00:13]} 21. Nc7+ {[%emt 0:00:01]} Kf7 {[%emt 0:01:06]} 22. Nxa8 {[%emt 0:00:02]} Bxa8 {[%emt 0:00:02]} 23. Bg3 {[%emt 0:00:34]} d5 {[%emt 0:00:20]} 24. Bd3 {[%emt 0:00:12]} e5 {[%emt 0:00:23]} 25. Re1 {[%emt 0:00:15]} e4 {[%emt 0:00:07]} 26. Bb5 {[%emt 0:00:12]} Ne7 {[%emt 0:00:10]} 27. Ba4 {[%emt 0:00:13]} h5 {[%emt 0:00:03]} 28. h3 {[%emt 0:00:10]} Nf5 {[%emt 0:01:23]} 29. Bh2 {[%emt 0:00:01]} Nh4 {[%emt 0:00:32]} 30. Bb3 {[%emt 0:00:10]} Qf5 {[%emt 0:00:20]} 31. Bg3 {[%emt 0:00:05]} Bf6 {[%emt 0:00:05]} 32. Qe2 {[%emt 0:00:04]} Kg7 {[%emt 0:00:12]} 33. Rbd1 {[%emt 0:00:02]} Rf8 {[%emt 0:00:24]} 34. c3 {[%emt 0:00:03]} Rd8 {[%emt 0:00:55]} 35. Qd2 {[%emt 0:00:30]} Bg5 {[%emt 0:00:13]} 36. Qd4+ {[%emt 0:00:05]} Bf6 {[%emt 0:00:10]} 37. Qa4 {[%emt 0:00:24]} a5 {[%emt 0:00:20]} 38. Qb5 {[%emt 0:00:02]} d4 {[%emt 0:00:17]} 39. Qxf5 {[%emt 0:00:22]} Nxf5 {[%emt 0:00:14]} 40. Bc7 {[%emt 0:00:15]} Rc8 {[%emt 0:00:33]} 41. Bxb6 {[%emt 0:00:01]} dxc3 {[%emt 0:00:01]} 42. bxc3 {[%emt 0:00:09]} Bxc3 {[%emt 0:00:01]} 43. Rd7+ {[%emt 0:00:20]} Kh6 {[%emt 0:00:15]} 44. Rc1 {[%emt 0:00:05]} Bc6 {[%emt 0:00:06]} 45. Rc7 {[%emt 0:00:10]} Rxc7 {[%emt 0:00:02]} 46. Bxc7 {[%emt 0:00:01]} Nd4 {[%emt 0:00:00]} 47. Bc4 {[%emt 0:00:24]} Bb4 {[%emt 0:00:43]} 48. Bf4+ {[%emt 0:00:02]} g5 {[%emt 0:00:02]} 49. Be3 {[%emt 0:00:08]} Nf5 {[%emt 0:00:02]} 50. Bb6 {[%emt 0:00:16]} Ba4 {[%emt 0:00:40]} 51. Bb3 {[%emt 0:00:09]} Bb5 {[%emt 0:00:03]} 52. Bc4 {[%emt 0:00:13]} Ba4 {[%emt 0:00:02]} 53. Bd5 {[%emt 0:00:06]} Bd2 {[%emt 0:00:23]} 54. Rc4 {[%emt 0:00:09]} e3 {[%emt 0:00:19]} 55. fxe3 {[%emt 0:00:01]} Bb5 {[%emt 0:00:22]} 56. Re4 {[%emt 0:00:02]} g4 {[%emt 0:00:20]} 57. hxg4 {[%emt 0:00:23]} hxg4 {[%emt 0:00:01]} 58. Rxg4 {[%emt 0:00:21]} Kh5 {[%emt 0:01:26]} 59. Re4 {[%emt 0:00:07]} Bd3 {[%emt 0:00:04]} 60. g4+ {[%emt 0:00:06]} 1-0

[Event "European Women Rapid-ch 2023"]
[Site "Monaco"]
[Date "2024.01.14"]
[Round "11.14"]
[White "Calzetta Ruiz, Monica"]
[Black "Guichard, Pauline"]
[Result "0-1"]
[ECO "C70"]
[WhiteElo "2241"]
[BlackElo "2385"]
[Annotator "RC"]
[PlyCount "40"]
[EventDate "2023.12.19"]
[EventType "swiss"]
[EventCountry "MNC"]
[SourceTitle "playchess.com"]
[Source "ChessBase"]
[SourceQuality "1"]
[TimeControl "900+10"]

1. e4 {[%emt 0:00:03]} e5 {[%emt 0:00:01]} 2. Nf3 {[%emt 0:00:02]} Nc6 {[%emt 0:00:03]} 3. Bb5 {[%emt 0:00:02]} a6 {[%emt 0:00:02]} 4. Ba4 {[%emt 0:00:01]} g6 {[%emt 0:00:04]} 5. Nc3 {[%emt 0:00:24]} Bg7 {[%emt 0:00:07]} 6. d3 {[%emt 0:00:03]} Nge7 {[%emt 0:00:12]} 7. h4 {[%emt 0:00:02]} h6 {[%emt 0:00:43]} 8. h5 {[%emt 0:00:03]} g5 {[%emt 0:00:07]} 9. Nxg5 {[%emt 0:00:06]} hxg5 {[%emt 0:00:10]} 10. Bxg5 {[%emt 0:00:03]} d6 {[%emt 0:01:32]} 11. h6 {[%emt 0:00:59]} Be6 {[%emt 0:02:47]} 12. Nd5 {[%emt 0:05:27]} Bxd5 {[%emt 0:00:02]} 13. exd5 {[%emt 0:00:04]} b5 {[%emt 0:00:02]} 14. dxc6 {[%emt 0:00:36]} bxa4 {[%emt 0:00:11]} 15. Qh5 {[%emt 0:06:30]} Bxh6 {[%emt 0:01:39]} 16. Rh3 {[%emt 0:00:04]} Qb8 {[%emt 0:01:39]} 17. Rf3 {[%emt 0:00:42]} Rh7 {[%emt 0:00:30]} 18. Bxh6 {[%emt 0:01:18]} Qb4+ {[%emt 0:03:58]} 19. Bd2 {[%emt 0:01:30]} Rh8 {[%emt 0:00:46]} 20. c3 {[%emt 0:00:00]} a3 {[%emt 0:01:21]} 0-1

[Event "European Women Rapid-ch 2023"]
[Site "Monaco"]
[Date "2024.01.14"]
[Round "11.15"]
[White "Savina, Anastasia"]
[Black "Lazarne Vajda, Szidonia"]
[Result "1-0"]
[ECO "E73"]
[WhiteElo "2340"]
[BlackElo "2283"]
[Annotator "ChessBase"]
[PlyCount "79"]
[EventDate "2023.12.19"]
[EventType "swiss"]
[EventCountry "MNC"]
[SourceTitle "playchess.com"]
[Source "ChessBase"]
[SourceQuality "1"]
[TimeControl "900+10"]

1. d4 {[%emt 0:00:03]} Nf6 {[%emt 0:00:02]} 2. c4 {[%emt 0:00:08]} g6 {[%emt 0:00:11]} 3. Nc3 {[%emt 0:00:03]} Bg7 {[%emt 0:00:01]} 4. e4 {[%emt 0:00:01]} d6 {[%emt 0:00:01]} 5. Be2 {[%emt 0:00:03]} O-O {[%emt 0:00:08]} 6. h4 {[%emt 0:00:26]} c5 {[%emt 0:00:11]} 7. d5 {[%emt 0:00:02]} e6 {[%emt 0:00:15]} 8. h5 {[%emt 0:00:02]} exd5 {[%emt 0:00:07]} 9. exd5 {[%emt 0:00:02]} Re8 {[%emt 0:00:23]} 10. h6 {[%emt 0:00:33]} Bh8 {[%emt 0:00:10]} 11. Bg5 {[%emt 0:00:03]} a6 {[%emt 0:01:38]} 12. Kf1 {[%emt 0:00:58]} b5 {[%emt 0:00:18]} 13. cxb5 {[%emt 0:00:19]} axb5 {[%emt 0:00:02]} 14. Bxb5 {[%emt 0:00:11]} Ba6 {[%emt 0:00:12]} 15. Bxa6 {[%emt 0:00:57]} Nxa6 {[%emt 0:00:10]} 16. Rh4 {[%emt 0:02:37]} Qb6 {[%emt 0:00:10]} 17. Nge2 {[%emt 0:00:12]} Nd7 {[%emt 0:01:14]} 18. Qd2 {[%emt 0:00:22]} Nc7 {[%emt 0:01:30]} 19. a4 {[%emt 0:01:27]} Rab8 {[%emt 0:00:25]} 20. Rb1 {[%emt 0:02:25]} Qa6 {[%emt 0:01:21]} 21. Kg1 {[%emt 0:00:36]} Ne5 {[%emt 0:00:02]} 22. b3 {[%emt 0:00:11]} c4 {[%emt 0:00:23]} 23. b4 {[%emt 0:00:21]} Qb7 {[%emt 0:06:19]} 24. b5 {[%emt 0:00:12]} Ra8 {[%emt 0:00:02]} 25. b6 {[%emt 0:01:06]} Na6 {[%emt 0:00:11]} 26. Ne4 {[%emt 0:00:24]} Qd7 {[%emt 0:00:54]} 27. Nd4 {[%emt 0:00:42]} Nc5 {[%emt 0:00:41]} 28. Nf6+ {[%emt 0:00:44]} Bxf6 {[%emt 0:00:10]} 29. Bxf6 {[%emt 0:00:03]} Rxa4 {[%emt 0:00:25]} 30. Qg5 {[%emt 0:00:57]} Ned3 {[%emt 0:00:26]} 31. Nc6 {[%emt 0:00:29]} Ra2 {[%emt 0:00:23]} 32. Bd4 {[%emt 0:00:26]} Qf5 {[%emt 0:01:10]} 33. Ne7+ {[%emt 0:01:35]} Rxe7 {[%emt 0:00:10]} 34. Qxe7 {[%emt 0:00:01]} Ra8 {[%emt 0:00:26]} 35. b7 {[%emt 0:00:18]} Rb8 {[%emt 0:00:11]} 36. Qxd6 {[%emt 0:00:58]} Na6 {[%emt 0:00:02]} 37. Ra1 {[%emt 0:00:39]} Ndb4 {[%emt 0:00:23]} 38. Bc3 {[%emt 0:00:38]} Qg5 {[%emt 0:00:27]} 39. Rxc4 {[%emt 0:00:06]} Qxh6 {[%emt 0:00:14]} 40. Rc8+ {[%emt 0:00:04]} 1-0